Workbook

Sheet Sample
S1: Original | T1: PVC | U1: Add to Column | V1: Column | W1: End Result
H2: 6-4-5 Income Calculator | S2: Col 6 | T2: =H8 -> 847 | U2: =N8 -> 762.84 | V2: Col 6 | W2: =SUM(T2:U2) -> 1609.84
H3: Conference to Conference Planning | S3: Col 4 | T3: =H9 -> 1400 | U3: =SUM(N8:N9) -> 1779.96 | V3: Col 4 | W3: =SUM(T3:U3) -> 3179.96
H4: Name: | K4: Sample of a 6 Month Plan | S4: Col 5 | T4: =H10 -> 3200 | U4: =SUM(N8:N10) -> 3305.64 | V4: Col5 | W4: =SUM(T4:U4) -> 6505.64
A5: Choose View in Order
B6: Maximize your 6-4-5 Income $1,500 | C6: PVC Goal Rounded | F6: PVC Targets | G6: Income Targets | H6: ….. Enter ….. Data | K6: Enter Your Plan | L6: Enter Timeline | O6: ….. PVC … Results | P6: VF Income Results | Q6: SC Income Results | S6: Trios | T6: 169.5 | U6: =SUM(T6/4) -> 42.375 | V6: 6776 | W6: 160 Trios
B7: Columns 6 4 5 | C7: Col 6-4-5 | D7: PC D DD VF | E7: A's, 1's, 2's | F7: A, 1, 2 | H7: Current Month Col 6-4-5 PVC | I7: PVC Needed | J7: Trios Needed | K7: Trios Per Month | L7: # of Months | M7: Resulting Trio Plan | N7: Resulting PVC | O7: Col 6-4-5 | P7: 6-4-5 Income | Q7: 6-4-5 Income | S7: =SUM(T7/42.3) -> 38.05768322 | T7: =SUM(H8+N8) -> 1609.84 | U7: =SUM(T7*0.14) -> 225.3776 | V7: =SUM(S7*9.75) -> 371.0624113 | W7: =SUM(U7:V7) -> 596.4400113 | X7: Col 6 VF
B8: Col 6 (Pers Total) | C8: 1600 | D8: PC's | E8: 40 A's | F8: 1694 | G8: 750 | H8: 847 | I8: =SUM(F8-H8) -> 847 | J8: =SUM(I8/40) -> 21.175 | K8: 3 | L8: 6 | M8: =SUM(L8*K8) -> 18 | N8: =SUM(M8*42.38) -> 762.84 | O8: =SUM(H8+N8) -> 1609.84 | P8: =SUM(U7:V7) -> 596.4400113 | Q8: =SUM(U8:V8) -> 725.2272113 | S8: =S7 -> 38.05768322 | T8: =T7 -> 1609.84 | U8: =SUM(T8*0.22) -> 354.1648 | V8: =SUM(S8*9.75) -> 371.0624113 | W8: =SUM(U8:V8) -> 725.2272113 | X8: Col 6 SC
B9: Col 4 (PB) | C9: 3200 | D9: HLP's | E9: 40 1's | F9: 1694 | G9: 350 | H9: 1400 | I9: =SUM(F9-(H9-H8)) -> 1141 | J9: =SUM(I9/40) -> 28.525 | K9: 4 | L9: 6 | M9: =SUM(L9*K9) -> 24 | N9: =SUM(M9*42.38) -> 1017.12 | O9: =SUM(H9+N8+N9) -> 3179.96 | P9: =SUM(T9*0.13) -> 204.1156 | Q9: =SUM(T9*0.21) -> 329.7252 | S9: Col 4 | T9: =SUM(O9-O8) -> 1570.12 | U9: 0.13 | V9: =SUM(T9*U9) -> 204.1156 | W9: VF
B10: Col 5 (POB Open) | C10: 6400 | D10: 2000+'s | E10: 80 2's | F10: 3388 | G10: 440 | H10: 3200 | I10: =SUM(F10-(H10-H9)) -> 1588 | J10: =SUM(I10/40) -> 39.7 | K10: 6 | L10: 6 | M10: =SUM(L10*K10) -> 36 | N10: =SUM(M10*42.38) -> 1525.68 | O10: =SUM(H10+N11) -> 6505.64 | Q10: =SUM(T11*0.13) -> 432.3384 | S10: Col 4 | T10: =T9 -> 1570.12 | U10: 0.21 | V10: =SUM(T10*U10) -> 329.7252 | W10: SC
F11: Income | G11: =SUM(G8:G10) -> 1540 | K11: =SUM(K8:K10) -> 13 | M11: =SUM(M8:M10) -> 78 | N11: =SUM(N8:N10) -> 3305.64 | P11: =SUM(P8:P10) -> 800.5556113 | Q11: =SUM(Q8:Q10) -> 1487.290811 | S11: Col 5 | T11: =SUM(O10-O9) -> 3325.68 | U11: 0.13 | V11: =SUM(T11*U11) -> 432.3384
A13: Revised 4/8/17 | B13: Col 4 - Plan 3-4 Trios for DD's | T13: =SUM(V6/8) -> 847
B14: Col 5 - Plan 12 Trios for FT-VF | T14: =SUM(T13*2) -> 1694
B15: Col 5 - Plan 12 Trios for VF-PB | T15: =SUM(T14*2) -> 3388
T16: =SUM(T15*2) -> 6776

Sheet Income Estimator (hidden)
B1: Simple, Fun and Financially Rewarding
E2: 6-4-5 Residual Income
E3: ABC Easy as 123
C5: A: Customers | G5: B: Level 1 | K5: B: Level 2 | O5: B: Level 3
B11: 40 Trio Customers | F11: 40 Trio Customers from | J11: 80 Trio Customers from | N11: Total SC Income from
B12: Your Personal Customers | F12: Dealers & Direct Distributors | J12: Virtual Franchisees | N12: PC, DLR/ DD & VF's
B13: 1,600 PVC | F13: 1,600 PVC | J13: 3,200 PVC | N13: (A, B1 & B2)
B16: Strong Customer Base | D16: 40 | E16: ✚ | F16: 10 HLP's w/ 4 Trios | H16: 40 | I16: ✚ | J16: 4 VF's w/ 20 Trios | L16: 80 | M16: = | N16: Residual Monthly Income
B17: Customer Orders | D17: 40 | F17: DLR's & DD Orders | H17: 40 | J17: Your VF's Orders | L17: 80 | N17: Rounded PVC | P17: Income from
B18: Monthly Trio PVC | D18: 42.35 | F18: Monthly Trio PVC | H18: 42.35 | J18: Monthly Trio PVC | L18: 42.35 | N18: Cumulative Column Total | P18: A, B1, B2
B19: Posted PVC | D19: =SUM(D17*D18) -> 1694 | F19: Posted PVC | H19: =SUM(H17*H18) -> 1694 | J19: Posted PVC | L19: =SUM(L17*L18) -> 3388 | N19: Col 6 (PC) | O19: 1600 | P19: =D22 -> 762.68
B20: Rate | C20: 0.22 | D20: =SUM(D19*C20) -> 372.68 | F20: Rate | H20: 0.21 | J20: Rate | L20: 0.13 | N20: Col 4 (PB) | O20: 3200 | P20: =H22 -> 355.74
B21: Retail Profit | C21: =SUM(39/4) -> 9.75 | D21: =SUM(D17*C21) -> 390 | F21: Col 4 Dist's | H21: =SUM(H19*H20) -> 355.74 | I21: ✚ | J21: Col 5 VF's | L21: =SUM(L19*L20) -> 440.44 | N21: Col 5 (POB) | O21: 6400 | P21: =L22 -> 440.44
B22: Col 6 Customers | D22: =SUM(D20:D21) -> 762.68 | F22: Col 4 DLR & DD | H22: =SUM(H21) -> 355.74 | I22: ✚ | J22: Col 5 VF | L22: =SUM(L21) -> 440.44 | M22: = | N22: Total 6-4-5 Income | P22: =SUM(P19:P21) -> 1558.86
B24: Rounded | D24: 750 | E24: ✚ | F24: ✚ | I24: Rounded | J24: 750 | M24: = | N24: Rounded | P24: 1500

Sheet Picture Income Est (hidden)

Sheet Blank
S1: Original | T1: PVC | U1: Add to Column | V1: Column | W1: End Result
H2: 6-4-5 Income Calculator | S2: Col 6 | T2: =H8 -> 0 | U2: =N8 -> 0 | V2: Col 6 | W2: =SUM(T2:U2) -> 0
H3: Conference to Conference Planning | S3: Col 4 | T3: =H9 -> 0 | U3: =SUM(N8:N9) -> 0 | V3: Col 4 | W3: =SUM(T3:U3) -> 0
H4: Name: | K4: VF Tracker | S4: Col 5 | T4: =H10 -> 0 | U4: =SUM(N8:N10) -> 0 | V4: Col5 | W4: =SUM(T4:U4) -> 0
A5: Choose View in Order
B6: Maximize your 6-4-5 Income $1,500 | C6: PVC Goal Rounded | F6: PVC Targets | G6: Income Targets | H6: ….. Enter ….. Data | K6: Enter Your Plan | L6: Enter Timeline | O6: ….. PVC … Results | P6: VF Income Results | Q6: SC Income Results | S6: Trios | T6: 169.5 | U6: =SUM(T6/4) -> 42.375 | V6: 6776 | W6: 160 Trios
B7: Columns 6 4 5 | C7: Col 6-4-5 | D7: PC D DD VF | E7: A's, 1's, 2's | F7: A, 1, 2 | H7: Current Month Col 6-4-5 PVC | I7: PVC Needed | J7: Trios Needed | K7: Trios Per Month | L7: # of Months | M7: Resulting Trio Plan | N7: Resulting PVC | O7: Col 6-4-5 | P7: 6-4-5 Income | Q7: 6-4-5 Income | S7: =SUM(T7/42.3) -> 0 | T7: =SUM(H8+N8) -> 0 | U7: =SUM(T7*0.14) -> 0 | V7: =SUM(S7*9.75) -> 0 | W7: =SUM(U7:V7) -> 0 | X7: Col 6 VF
B8: Col 6 (Pers Total) | C8: 1600 | D8: PC's | E8: 40 A's | F8: 1694 | G8: 750 | H8: =R8 -> 0 | I8: =SUM(F8-H8) -> 1694 | J8: =SUM(I8/40) -> 42.35 | M8: =SUM(L8*K8) -> 0 | N8: =SUM(M8*42.38) -> 0 | O8: =SUM(H8+N8) -> 0 | P8: =SUM(U7:V7) -> 0 | Q8: =SUM(U8:V8) -> 0 | S8: =S7 -> 0 | T8: =T7 -> 0 | U8: =SUM(T8*0.22) -> 0 | V8: =SUM(S8*9.75) -> 0 | W8: =SUM(U8:V8) -> 0 | X8: Col 6 SC
B9: Col 4 (PB) | C9: 3200 | D9: HLP's | E9: 40 1's | F9: 1694 | G9: 350 | H9: =R9 -> 0 | I9: =SUM(F9-(H9-H8)) -> 1694 | J9: =SUM(I9/40) -> 42.35 | M9: =SUM(L9*K9) -> 0 | N9: =SUM(M9*42.38) -> 0 | O9: =SUM(H9+N8+N9) -> 0 | P9: =SUM(T9*0.13) -> 0 | Q9: =SUM(T9*0.21) -> 0 | S9: Col 4 | T9: =SUM(O9-O8) -> 0 | U9: 0.13 | V9: =SUM(T9*U9) -> 0 | W9: VF
B10: Col 5 (POB Open) | C10: 6400 | D10: 2000+'s | E10: 80 2's | F10: 3388 | G10: 440 | H10: =H9 -> 0 | I10: =SUM(F10-(H10-H9)) -> 3388 | J10: =SUM(I10/40) -> 84.7 | M10: =SUM(L10*K10) -> 0 | N10: =SUM(M10*42.38) -> 0 | O10: =SUM(H10+N11) -> 0 | Q10: =SUM(T11*0.13) -> 0 | S10: Col 4 | T10: =T9 -> 0 | U10: 0.21 | V10: =SUM(T10*U10) -> 0 | W10: SC
F11: Income | G11: =SUM(G8:G10) -> 1540 | K11: =SUM(K8:K10) -> 0 | M11: =SUM(M8:M10) -> 0 | N11: =SUM(N8:N10) -> 0 | P11: =SUM(P8:P10) -> 0 | Q11: =SUM(Q8:Q10) -> 0 | S11: Col 5 | T11: =SUM(O10-O9) -> 0 | U11: 0.13 | V11: =SUM(T11*U11) -> 0
A13: Revised 4/8/17 | B13: Col 4 - Plan 3-4 Trios for DD's | T13: =SUM(V6/8) -> 847
B14: Col 5 - Plan 12 Trios for FT-VF | T14: =SUM(T13*2) -> 1694
B15: Col 5 - Plan 12 Trios for VF-PB | T15: =SUM(T14*2) -> 3388
T16: =SUM(T15*2) -> 6776
